Cogmind - Beta 12 @@@ ROGUE MODE // 2023.04.06 @ 11:43:32 Player: Infomantis Result: Destroyed by X-82 Rainmaker with Heavy Flak Cannon Performance ------------- Evolutions (8) 4000 Regions Visited (28) 5600 Robots Destroyed (298) 1490 Value Destroyed (16266) 16266 Prototype IDs (62) 1240 Alien Tech Used (0) 0 Bonus (14348) 14348 TOTAL SCORE: 42944 Bonus ------- High Alert Combat Kills 4105 Follower Combat Kills 3008 Entered Garrisons 1400 Used RIF Installer 3000 Entered DSFs 500 Network Hubs Disabled 400 Aligned with FarCom 300 Built Enhanced Grunts 300 A7 Reached Mainframe 300 Met R17 at Cetus 500 Met R17 at Research 2000 Friendly Fire -1465 Cogmind --------- Core Integrity 0/1450 Matter 35/300 Energy 67/100 System Corruption 3% Temperature Cool (0) Movement Rolling (95) Location -2/DSF Parts ------- > --- POWER (2) -------- (None) > --- PROPULSION (5) --- Armored Huge Wheel Armored Huge Wheel Centrium Wheel > --- UTILITY (11) ----- Relay Coupler [NC] (27) Relay Coupler [Grunt] (25) Relay Coupler [Proto] (10) > --- WEAPON (5) ------- (None) > --- INVENTORY (5) ---- Light Quantum Reactor Relay Coupler [Proto] (10) Relay Coupler [Proto] (10) Enhanced Nova Cannon Advanced Remote Datajack Peak State ------------ > --- POWER ------------ Fission-Quantum Core > --- PROPULSION ------- Hovering Antigrav Exoskeleton > --- UTILITY ---------- Armored Scrap Engine Advanced Heat Sink Advanced Cooling System High-capacity Storage Unit Improved Targeting Computer Centrium Medium Armor Plating Centrium Medium Armor Plating Relay Coupler [Grunt] > --- WEAPON ----------- Plasma Rifle Enhanced Quantum Rifle Hvy. Directed Nova Construct/C > --- INVENTORY -------- Advanced Heat Sink Advanced Cooling System Improved Coolant Injector Improved Trap Scanner Advanced Sensor Array Force Field Relay Coupler [NC] Relay Coupler [NC] Relay Coupler [NC] Relay Coupler [Sentry] Relay Coupler [Proto] Relay Coupler [Proto] Relay Coupler [Proto] Relay Coupler [Proto] Linear Accelerator Mini Smartbomb Launcher Mini Smartbomb Launcher Advanced Datajack Advanced Remote Datajack Improved Plasma Cutter [Rating: 155] Favorites ----------- Power Constructs Engine Ion Engine Power Core Constructs Reactor Antimatter Reactor Propulsion Constructs Leg Potential Leg Wheel Armored Huge Wheel Hover Unit Constructs Utility High-capacity Storage Unit Device Armored Scrap Engine Storage High-capacity Storage Unit Processor Improved Targeting Computer Hackware Relay Coupler [Grunt] Protection Improved Medium Armor Plating Weapon Constructs Energy Gun Beam Rifle Energy Cannon Constructs Ballistic Gun Improved Assault Rifle Ballistic Cannon AWS/Autocannon Launcher Mini Smartbomb Launcher Special Weapon Improved Remote Datajack Special Melee Weapon Datajack Build | -11 -10 -10 -10 -9 -8 -8 -8 -8 -6 -6 -6 -6 -6 -6 -6 -5 -5 -5 -4 -4 -3 -3 -3 -3 -2 -2 -2 -2 ------- Run | Jun Mat Min Exi Min Mat Sto Gar Rec Fac Gar Fac Ext Cet Arc Hub Fac Gar Fac Fac Gar Res Gar Qua Gar Res Gar Res DSF Slots Evolved 16 | . . . . . 4 . . . 4 . . . . . . 2 . . 2 . 2 . . . 2 . . . Power 1 | . . . . . . . . . . . . . . . . 1 . . . . . . . . . . . . Propulsion 3 | . . . . . 1 . . . 1 . . . . . . . . . . . 1 . . . . . . . Utility 9 | . . . . . 2 . . . 3 . . . . . . . . . 1 . 1 . . . 2 . . . Weapon 3 | . . . . . 1 . . . . . . . . . . 1 . . 1 . . . . . . . . . Parts Attached 252 | 7 2 . 5 . 23 4 4 7 3 19 9 9 11 5 4 11 13 20 4 10 12 26 5 17 17 . 2 3 Power 8 | 1 . . . . 3 . 1 . . 1 . . . . . . 1 1 . . . . . . . . . . Engine 5 | 1 . . . . 2 . 1 . . 1 . . . . . . . . . . . . . . . . . . Core 2 | . . . . . 1 . . . . . . . . . . . 1 . . . . . . . . . . . Reactor 1 | . . . . . . . . . . . . . . . . . . 1 . . . . . . . . . . Propulsion 13 | 2 . . 2 . 4 . . 2 . . . . . . . . . . . . . . . . . . . 3 Treads . | . . . . . . . . . . . . . . . . . . . . . . . . . . . . . Leg 10 | 2 . . 2 . 4 . . 2 . . . . . . . . . . . . . . . . . . . . Wheel 3 | . . . . . . . . . . . . . . . . . . . . . . . . . . . . 3 Hover . | . . . . . . . . . . . . . . . . . . . . . . . . . . . . . Flight . | . . . . . . . . . . . . . . . . . . . . . . . . . . . . . Utility 147 | 2 1 . 1 . 8 . 1 3 3 10 8 6 9 5 4 7 7 12 2 7 11 15 3 9 11 . 2 . Device 68 | 1 . . . . 3 . . 1 2 . 3 4 5 4 1 3 6 6 . 4 8 8 . 4 5 . . . Storage 5 | 1 1 . 1 . . . . . . . . . . . . . . . . . . . 1 1 . . . . Processor 9 | . . . . . 2 . . . . . 2 . . . . 1 . . 1 . 1 . . . 2 . . . Hackware 21 | . . . . . . . . 2 . 4 1 . . 1 . 1 1 1 . 1 1 2 1 1 2 . 2 . Protection 44 | . . . . . 3 . 1 . 1 6 2 2 4 . 3 2 . 5 1 2 1 5 1 3 2 . . . Artifact . | . . . . . . . . . . . . . . . . . . . . . . . . . . . . . Weapon 84 | 2 1 . 2 . 8 4 2 2 . 8 1 3 2 . . 4 5 7 2 3 1 11 2 8 6 . . . Energy Gun 21 | 1 1 . . . 4 1 . . . . . . 1 . . . 1 2 . . 1 6 . 1 2 . . . Energy Cannon 9 | . . . . . . . . . . 3 . 2 1 . . . . 1 2 . . . . . . . . . Ballistic Gun 10 | 1 . . 1 . 3 1 2 . . 1 . . . . . . . . . . . . . 1 . . . . Ballistic Cannon 1 | . . . . . 1 . . . . . . . . . . . . . . . . . . . . . . . Launcher 13 | . . . . . . 1 . . . 1 . . . . . 1 . 3 . 1 . 2 . 1 3 . . . Special Weapon 25 | . . . . . . . . 2 . 3 . 1 . . . 3 4 1 . 2 . 2 1 5 1 . . . Impact Weapon . | . . . . . . . . . . . . . . . . . . . . . . . . . . . . . Slashing Weapon . | . . . . . . . . . . . . . . . . . . . . . . . . . . . . . Piercing Weapon . | . . . . . . . . . . . . . . . . . . . . . . . . . . . . . Special Melee Weapon 5 | . . . 1 . . 1 . . . . 1 . . . . . . . . . . 1 1 . . . . . Unidentified Prototypes 15 | . . . . . 2 1 . . . . . . 4 . . . . 3 1 . 1 2 . . 1 . . . Corrupted Parts 4 | . . . . . . . . 1 . . 1 . . . . . . 1 . . . . . 1 . . . . System Corruption 13 | . . . . . . . . 1 . . 4 . . . . . . 4 . . . . . 4 . . . . Parts Lost 51 | . . . . . 6 1 1 . . 3 . 1 1 . . 2 1 5 . . 2 4 . 6 16 2 . . Power 6 | . . . . . 2 . 1 . . 1 . . . . . . . 2 . . . . . . . . . . Propulsion 7 | . . . . . 1 . . . . . . . . . . . 1 . . . . . . . 5 . . . Utility 24 | . . . . . 1 . . . . . . 1 1 . . 2 . 2 . . 2 1 . 4 8 2 . . Weapon 14 | . . . . . 2 1 . . . 2 . . . . . . . 1 . . . 3 . 2 3 . . . Highest Loss Streak 14 | . . . . . 3 1 1 . . 3 . 1 1 . . 1 1 4 . . 1 1 . 2 12 14 . . To Critical Strikes 2 | . . . . . . . . . . . . . . . . . 1 . . . . . . . 1 . . . Average Slot Usage (%) 68 | . 100 100 100 100 88 99 99 68 60 66 66 62 61 58 59 55 59 57 65 61 57 58 60 55 57 9 10 21 Engine 2 | . 14 14 14 14 1 . 7 2 . 1 . . . . . 3 1 4 2 . . . . . . . . . Core 3 | . . . . . 7 9 1 6 6 4 6 5 6 6 6 1 4 . . . . . . . 3 . . . Reactor 1 | . . . . . . . . . . . . . . . . . . 1 7 5 4 4 4 3 . . . . Treads 1 | . . . . . . . . . . 3 6 5 . . . 4 2 . . 2 3 4 4 . . . . . Leg 8 | . 28 28 28 28 27 27 27 8 6 2 . . 6 6 6 . . . . . . . . 1 3 . . . Device 15 | . 14 14 14 14 9 9 9 9 20 14 13 15 20 18 20 15 16 18 15 19 21 15 16 17 19 1 . . Storage 6 | . 14 14 14 14 9 9 9 9 6 6 6 6 6 6 6 5 5 5 5 5 4 4 3 4 3 . . . Processor 3 | . . . . . 8 9 9 . . . 2 4 . . . 3 5 5 10 6 4 4 4 . 3 . . . Hackware 2 | . . . . . . . . 7 6 10 9 3 . . . . . . . . . 3 2 4 4 7 10 13 Protection 5 | . . . . . 8 9 9 1 . 5 6 7 11 13 12 5 5 3 5 5 4 6 8 5 2 . . . Energy Gun 3 | . 14 14 14 14 5 22 . 4 5 . . . . . . . . 1 . . . 5 4 1 1 . . . Energy Cannon 2 | . . . . . . . . . . 5 7 6 7 6 6 5 3 5 2 5 4 3 . 2 1 . . . Ballistic Gun 4 | . 14 14 7 14 7 1 26 15 7 7 1 1 . . . . . . . . . . . 1 2 . . . Special Weapon 1 | . . . . . . . . 1 . 1 1 . . . . 4 4 . . 6 4 . . 4 3 . . . Naked Turns . | . . . . . . . . . . . . . . . . . . . . . . . . . . . . . Heaviest Build 145 | 13 20 20 50 50 111 63 61 57 56 84 74 85 88 83 82 92 113 114 107 129 112 131 125 143 145 1 . . Greatest Support 171 | 20 20 20 60 60 78 78 78 78 56 92 89 71 91 110 110 121 121 117 117 85 147 131 120 171 171 3 3 28 Greatest Overweight (x) 9 | . . . . . 1 . . 1 . 1 1 1 1 . . . 1 . 1 1 1 . 1 1 9 . . . Average Overweight (x) . | . . . . . . . . . . . . . . . . . . . . 1 . . . . . . . . Largest Inventory Capacity 20 | 8 10 10 20 20 20 20 20 20 20 20 20 20 20 20 20 20 20 20 20 20 20 20 20 20 20 5 5 5 Average Capacity 19 | 7 8 10 11 20 20 20 20 20 20 20 20 20 20 20 20 20 20 20 20 20 20 20 18 20 19 5 5 5 Most Carried 20 | 8 8 10 19 20 20 20 20 20 20 20 20 20 20 20 20 20 20 20 20 20 20 20 20 20 20 5 5 5 Average Carried 18 | 4 8 9 11 19 19 19 19 18 18 19 19 17 19 19 19 19 19 19 18 19 19 19 17 19 18 5 4 5 Final Capacity 20 | 8 10 10 20 20 20 20 20 20 20 20 20 20 20 20 20 20 20 20 20 20 20 20 20 20 5 5 5 5 Final Carried 20 | 8 8 10 19 20 20 20 20 19 20 17 17 19 20 20 20 20 20 18 20 19 20 20 20 20 5 5 5 5 Scrap Engine Consumption 278 | . . . . . . . . 32 1 16 12 19 16 6 4 11 19 17 3 28 34 28 5 20 7 . . . Constructs Created 12 | . . . . . . . . 3 . 1 1 1 . . . . . 1 . . 2 1 . 1 1 . . . Constructs Modified 104 | . . . . . . . . 8 1 5 2 9 5 2 . 6 13 4 3 14 9 11 1 9 2 . . . Class Distribution -------------------- 23% | Bothacker-Construct 17% | Construct 16% | Scavenger-Construct 14% | Skirmisher 12% | Mutant 8% | Botlord-Construct 3% | Botlord-Mutant Dominant Class ---------------- Mutant | -10/Materials Mutant | -10/Mines Mutant | -10/Exiles Mutant | -9/Mines Skirmisher | -8/Materials Skirmisher | -8/Storage Skirmisher | -8/Garrison Construct | -8/Recycling Construct | -6/Factory Bothacker-Construct | -6/Garrison Bothacker-Construct | -6/Factory Bothacker-Construct | -6/Extension Construct | -6/Cetus Construct | -6/Archives Construct | -6/Hub_04(d) Construct | -5/Factory Scavenger-Construct | -5/Garrison Bothacker-Construct | -5/Factory Bothacker-Construct | -4/Factory Scavenger-Construct | -4/Garrison Scavenger-Construct | -3/Research Botlord-Construct | -3/Garrison Botlord-Construct | -3/Quarantine Botlord-Construct | -3/Garrison Botlord-Mutant | -2/Research Botlord-Mutant | -2/Garrison Bothacker-Mutant | -2/Research Bothacker-Mutant | -2/DSF Resources | -11 -10 -10 -10 -9 -8 -8 -8 -8 -6 -6 -6 -6 -6 -6 -6 -5 -5 -5 -4 -4 -3 -3 -3 -3 -2 -2 -2 -2 ----------- Run | Jun Mat Min Exi Min Mat Sto Gar Rec Fac Gar Fac Ext Cet Arc Hub Fac Gar Fac Fac Gar Res Gar Qua Gar Res Gar Res DSF Matter Collected 9010 | 279 . 32 . 59 403 95 201 140 . 454 221 315 235 117 54 183 183 357 87 1484 1150 1584 180 769 428 . . . Remotely . | . . . . . . . . . . . . . . . . . . . . . . . . . . . . . Salvage Created 16786 | 136 . . . 123 1727 445 425 88 . 422 247 591 226 190 429 885 1144 1537 87 1896 1098 1641 642 1727 1080 . . . Parts 698 | 7 . . . 10 73 32 34 5 . 14 7 14 5 6 20 50 35 56 3 55 27 94 38 77 36 . . . Haulers Intercepted 7 | . . . . . 1 . . . . . . . . . 1 . . 3 . . 1 1 . . . . . . Recyclers Shooed 5 | 1 . . . . 1 . . . . . . . . . . . . 2 . . . . 1 . . . . . Parts Field Recycled . | . . . . . . . . . . . . . . . . . . . . . . . . . . . . . Retrieved Matter . | . . . . . . . . . . . . . . . . . . . . . . . . . . . . . Parts Self-Destructed . | . . . . . . . . . . . . . . . . . . . . . . . . . . . . . Prevented . | . . . . . . . . . . . . . . . . . . . . . . . . . . . . . Kills | -11 -10 -10 -10 -9 -8 -8 -8 -8 -6 -6 -6 -6 -6 -6 -6 -5 -5 -5 -4 -4 -3 -3 -3 -3 -2 -2 -2 -2 ------- Run | Jun Mat Min Exi Min Mat Sto Gar Rec Fac Gar Fac Ext Cet Arc Hub Fac Gar Fac Fac Gar Res Gar Qua Gar Res Gar Res DSF Combat Hostiles Destroyed 250 | . . . . 3 42 9 13 2 . 9 1 10 3 2 2 17 18 28 1 13 12 26 5 20 14 . . . Melee 1 | . . . . . . . . . . . . . . . . . . . . . . 1 . . . . . . Guns 50 | . . . . 3 14 3 13 2 . 2 . . . . . . 2 5 . . . 3 . 2 1 . . . Cannons 149 | . . . . . 26 . . . . 7 1 7 2 1 2 16 12 10 1 10 8 20 5 14 7 . . . AOE 32 | . . . . . 2 6 . . . . . . . . . 1 . 11 . . 1 2 . 3 6 . . . Classes Destroyed 21 | 2 . . . 1 8 1 2 . . . . 1 . 1 . . . 1 . . . 3 . . 1 . . . Worker 9 | . . . . . 1 2 . . . . . . . . 1 . . 1 . . . . 1 . 3 . . . Builder 4 | . . . . . . 1 . . . . . . . . 2 1 . . . . . . . . . . . . Tunneler 3 | 3 . . . . . . . . . . . . . . . . . . . . . . . . . . . . Hauler 7 | . . . . . 1 . . . . . . . . . 1 . . 3 . . 1 1 . . . . . . Recycler 9 | 1 . . . . 2 . . . . . 1 . . . . . . 1 . . 1 . 2 . 1 . . . Mechanic 1 | . . . . . . . . . . . . . . . . . . . . . . . . . 1 . . . Operator 4 | . . . . . . . . . . . . . . 1 1 . . 1 . . . . . . 1 . . . Watcher 10 | . . . . . 4 . . . . . . . . . 2 . . 1 . . 2 . 1 . . . . . Swarmer 45 | . . . . . 4 . 6 . . 3 . 3 1 . . 2 1 14 . 5 3 3 . . . . . . Cutter 2 | . . . . . . . . . . . . . . . . . . . . . . 2 . . . . . . Saboteur 1 | . . . . . . . . . . . . . . . . . . . . . . 1 . . . . . . Grunt 96 | . . . . 3 25 5 4 . . 1 1 2 1 . . 8 10 8 . 1 3 9 2 8 5 . . . Brawler 3 | . . . . . 1 . . . . . . . . . . . . 1 . . . . . 1 . . . . Duelist 7 | . . . . . 1 . . . . . . . . . . 3 1 1 . . . 1 . . . . . . Protector 2 | . . . . . . . . . . . . . . . . . . 2 . . . . . . . . . . Sentry 35 | . . . . . 8 3 1 2 . 3 . 3 . 2 1 1 2 1 1 2 2 . . 2 1 . . . Demolisher 1 | . . . . . . . . . . . . . . . . . . . . . . 1 . . . . . . Specialist 4 | . . . . . . . 1 . . . . . . . 1 . . . . . . . . 2 . . . . Hunter 22 | . . . . . 3 1 . . . 1 1 . . . . . 2 1 . 2 2 2 . 2 5 . . . Programmer 23 | . . . . . . . 1 . . 1 . . . . . 3 2 . . 1 2 5 3 3 2 . . . Behemoth 9 | . . . . . . . . . . . . 2 . . . . . . . 2 . 2 . 2 1 . . . Cetus Guard 1 | . . . . . . . . . . . . . 1 . . . . . . . . . . . . . . . Enhanced Grunt 1 | . . . . . . . . . . . . . . . 1 . . . . . . . . . . . . . Thug 2 | . . . . . . . . . . . . . 1 . . . 1 . . . . . . . . . . . Butcher 1 | . . . . . . . . . . . . 1 . . . . . . . . . . . . . . . . Best Kill Streak 9 | 2 . . . 3 9 9 6 1 . 4 2 3 2 1 7 8 6 6 1 3 4 5 3 8 5 . . . Combat Bots Only 8 | . . . . 3 6 6 6 1 . 4 1 3 2 2 1 8 6 5 1 3 4 5 3 8 3 . . . Max Kills in Single Turn 6 | 1 . . . 1 2 2 2 1 . 1 1 1 1 1 6 2 1 3 1 2 1 1 1 2 2 . . . Gunslinging 1 | . . . . . . . 1 . . . . . . . . . . . . . . . . . . . . . Exploded 3 | . . . . . 1 1 . . . . . . . . . 1 . 3 . . 1 1 . 2 1 . . . Melee 1 | . . . . . . . . . . . . . . . . . . . . . . 1 . . . . . . Uniques/NPCs Destroyed . | . . . . . . . . . . . . . . . . . . . . . . . . . . . . . Combat | -11 -10 -10 -10 -9 -8 -8 -8 -8 -6 -6 -6 -6 -6 -6 -6 -5 -5 -5 -4 -4 -3 -3 -3 -3 -2 -2 -2 -2 -------- Run | Jun Mat Min Exi Min Mat Sto Gar Rec Fac Gar Fac Ext Cet Arc Hub Fac Gar Fac Fac Gar Res Gar Qua Gar Res Gar Res DSF Damage Taken 27901 | . . . . 100 1821 334 290 70 . 1419 207 1307 840 168 491 1882 1405 1997 292 932 1143 3824 199 3701 4507 918 . 54 Core 3406 | . . . . 11 302 71 59 15 . 123 33 68 103 25 20 115 33 136 . 104 204 354 21 156 620 817 . 16 Absorbed by Shields 1095 | . . . . . . . . . . 32 . 6 128 . . . . 13 . 45 . 243 . 60 568 . . . Regen/Repaired (Parts) 9814 | . . . . . . . . 14 . 666 54 1025 258 . . 693 1044 686 504 673 453 1804 310 1145 485 . . . Core Remaining (%) 67 | 100 . . . 95 . . . 18 . . . . . . 56 . . 71 . 90 . . . 43 . . . . Volleys Fired 944 | 20 . 1 . 9 57 16 21 8 . 66 9 51 23 34 20 50 66 64 6 84 41 91 18 112 77 . . . Largest 3 | 2 . 2 . 2 3 3 3 2 . 3 1 2 2 1 1 1 1 1 1 2 2 3 1 2 2 . . . Hottest 350 | 60 . 76 . 76 101 158 69 46 . 168 134 162 273 136 136 247 259 259 269 350 349 285 90 156 183 . . . Shots Fired 1272 | 40 . 2 . 18 212 33 63 12 . 104 9 51 32 34 20 50 64 61 6 86 42 108 18 128 79 . . . Gun 439 | 40 . 2 . 18 130 28 63 12 . 57 . . 1 . . . 4 20 . . 1 33 . 17 13 . . . Cannon 722 | . . . . . 82 . . . . 35 9 48 31 34 20 48 52 34 6 52 41 65 18 93 54 . . . Launcher 35 | . . . . . . 5 . . . 4 . . . . . 1 . 7 . . . 3 . 4 11 . . . Special 76 | . . . . . . . . . . 8 . 3 . . . 1 8 . . 34 . 7 . 14 1 . . . Kinetic 622 | 20 . 1 . 9 176 . 63 12 . 57 9 11 2 . . . 14 10 2 29 15 40 18 80 54 . . . Thermal 431 | 20 . 1 . 9 29 11 . . . 35 . 37 30 34 20 48 10 27 . 28 1 58 . 20 13 . . . Explosive 35 | . . . . . . 5 . . . 4 . . . . . 1 . 7 . . . 3 . 4 11 . . . Electromagnetic 149 | . . . . . 7 17 . . . . . . . . . . 38 17 4 23 26 . . 17 . . . . Robot Hit Streak 24 | 12 . 4 . 6 16 7 12 23 . 24 13 11 9 8 2 7 20 13 13 17 6 14 10 9 17 . . . Robot Miss Streak 8 | 2 . . . 2 3 2 3 . . 3 3 8 3 6 7 3 3 5 . 2 3 4 2 6 3 . . . Penetration Max 1 | . . . . . . . . . . . . . . . . . . . . 1 . 1 . . . . . . Secondary Targets 5 | . . . . . 1 . 4 . . . . . . . . . . . . . . . . . . . . . Max Gunslinging Chain 1 | . . . . . 1 . 1 . . . . . . . . . . . . . . . . . . . . . Autonomous 83 | . . . . . 83 . . . . . . . . . . . . . . . . . . . . . . . Shots Hit Robots 877 | 25 . 2 4 12 165 27 39 11 . 54 9 44 20 19 3 33 40 42 6 70 25 71 14 84 58 . . . Core Hits 483 | 9 . 1 . 5 79 24 20 4 . 21 10 37 11 8 13 19 16 44 2 28 12 43 8 36 33 . . . Critical Kills 4 | . . . . . . . . . . . . . 1 . . . 3 . . . . . . . . . . . Critical Parts Destroyed 3 | . . . . . 1 . . . . 2 . . . . . . . . . . . . . . . . . . Critical Strikes 38 | . . 1 . 1 14 . . . . 3 . . 1 . . . 7 2 . 3 . 1 . 2 3 . . . Burn 3 | . . 1 . 1 1 . . . . . . . . . . . . . . . . . . . . . . . Meltdown 1 | . . . . . . . . . . . . . 1 . . . . . . . . . . . . . . . Destroy 8 | . . . . . 1 . . . . 3 . . . . . . 4 . . . . . . . . . . . Blast 19 | . . . . . 12 . . . . . . . . . . . . 2 . 1 . 1 . . 3 . . . Corrupt 5 | . . . . . . . . . . . . . . . . . 3 . . . . . . 2 . . . . Sever 2 | . . . . . . . . . . . . . . . . . . . . 2 . . . . . . . . Melee Attacks 6 | . . . 4 . . 1 . . . . . . . . . . . . . . . . 1 . . . . . Impact . | . . . . . . . . . . . . . . . . . . . . . . . . . . . . . Slashing . | . . . . . . . . . . . . . . . . . . . . . . . . . . . . . Piercing . | . . . . . . . . . . . . . . . . . . . . . . . . . . . . . Sneak Attacks 6 | . . . 4 . . 1 . . . . . . . . . . . . . . . . 1 . . . . . Combat Hostiles . | . . . . . . . . . . . . . . . . . . . . . . . . . . . . . Follow-up Attacks . | . . . . . . . . . . . . . . . . . . . . . . . . . . . . . Damage Inflicted 52318 | 227 . 24 . 170 7378 925 643 167 . 964 168 1623 1303 960 1159 1985 2642 4610 342 5060 2493 5744 1159 7068 5504 . . . Guns 5321 | 227 . 24 . 144 1370 363 643 167 . 642 . . . . . . 112 367 . . . 693 . 295 274 . . . Cannons 39210 | . . . . . 5754 . . . . 322 168 1595 1303 960 245 1591 2462 2530 342 4611 2358 4612 1159 5722 3476 . . . Explosions 7026 | . . . . . 238 552 . . . . . . . . 914 394 . 1713 . . 102 439 . 926 1748 . . . Melee . | . . . . . . . . . . . . . . . . . . . . . . . . . . . . . Ramming 119 | . . . . 26 16 10 . . . . . 28 . . . . . . . . 33 . . . 6 . . . Kinetic 24880 | 96 . 10 . 43 6705 . 643 167 . 642 168 194 43 . . . 670 578 216 2783 482 1973 1159 4832 3476 . . . Thermal 13287 | 131 . 14 . 101 420 295 . . . 322 . 1401 1260 960 245 1925 180 856 . 449 . 3439 . 1015 274 . . . Explosive 4975 | . . . . . . 375 . . . . . . . . . 60 . 1534 . . . 332 . 926 1748 . . . Electromagnetic 9057 | . . . . . 237 245 . . . . . . . . 914 . 1792 1642 126 1828 1978 . . 295 . . . . Impact . | . . . . . . . . . . . . . . . . . . . . . . . . . . . . . Slashing . | . . . . . . . . . . . . . . . . . . . . . . . . . . . . . Piercing . | . . . . . . . . . . . . . . . . . . . . . . . . . . . . . Highest Corruption 15 | . . . . . . 1 1 2 . . 4 4 4 4 2 4 8 12 . . 3 7 7 15 3 3 3 3 Average Corruption 4 | . . . . . . 1 1 1 . . 4 4 4 3 2 3 5 9 . . 2 5 7 13 2 3 3 3 Corruption Purged 4 | . . . . . . . . . . . . . . 4 . . . . . . . . . . . . . . Corruption Blocked 15 | . . . . . . . . . . . . . . . . . . . . . . . 15 . . . . . Effects 215 | . . . . . . . 6 10 . . 6 27 10 2 . 6 26 27 . . 15 31 7 34 7 1 . . Message Errors 50 | . . . . . . . 1 2 . . 2 11 . 2 . 1 4 7 . . 4 8 3 4 . 1 . . Matter Fused 43 | . . . . . . . 1 4 . . 1 7 3 . . 1 4 3 . . 1 7 3 7 1 . . . Heat Flow Errors 40 | . . . . . . . 1 1 . . 2 5 3 . . 1 6 3 . . 2 7 . 7 2 . . . Energy Discharges 20 | . . . . . . . 1 1 . . . . 1 . . 1 3 1 . . 1 2 1 6 2 . . . Parts Rejected 2 | . . . . . . . . . . . . . . . . . . 1 . . . . . . 1 . . . Parts Fused 3 | . . . . . . . . . . . . . 1 . . . . 1 . . 1 . . . . . . . Data Loss (minor) 25 | . . . . . . . . 1 . . 1 2 1 . . . 4 4 . . 2 5 . 5 . . . . Data Loss (major) 13 | . . . . . . . . 1 . . . 1 1 . . 1 2 2 . . 2 1 . 1 1 . . . Misfires 1 | . . . . . . . . . . . . . . . . . . . . . . 1 . . . . . . Alerts 9 | . . . . . . . 2 . . . . . . . . 1 1 1 . . 2 . . 2 . . . . Misdirections 1 | . . . . . . . . . . . . . . . . . . 1 . . . . . . . . . . Weapon Failures 8 | . . . . . . . . . . . . 1 . . . . 2 3 . . . . . 2 . . . . Overload Shots 10 | . . . . . . . . . . . . . 10 . . . . . . . . . . . . . . . Overflow Damage 4092 | . . . . 4 624 6 . . . . . 3 57 65 88 41 207 546 . 404 507 274 111 650 505 . . . Projectiles 3713 | . . . . . 611 . . . . . . . 57 65 9 6 207 371 . 404 494 250 111 650 478 . . . Explosions 372 | . . . . . 13 6 . . . . . . . . 79 35 . 175 . . 13 24 . . 27 . . . Melee 7 | . . . . 4 . . . . . . . 3 . . . . . . . . . . . . . . . . Knockbacks 88 | . . . . . 33 . . . . . 2 3 . . . . . . . 4 5 4 4 17 16 . . . Impact 1 | . . . . . . . . . . . . . . . . . . . . . 1 . . . . . . . Kinetic 78 | . . . . . 28 . . . . . 2 3 . . . . . . . 4 4 4 4 15 14 . . . Secondary 9 | . . . . . 5 . . . . . . . . . . . . . . . . . . 2 2 . . . Self-Inflicted Damage 932 | . . . . . 85 . . . . . . . . . 258 113 . 181 . . 11 83 . 6 195 . . . Shots 19 | . . . . . 2 . . . . . . . . . 3 2 . 3 . . 1 1 . 1 6 . . . Rammed 11 | . . . . . . . . . . . . 2 . . . 1 . . . . 6 . . . 2 . . . Targets Rammed 17 | . . . . 1 3 1 . . . . . 2 . . . 1 . . . . 6 . . . 3 . . . Kicked 6 | . . . . 1 3 1 . . . . . . . . . . . . . . . . . . 1 . . . Crushed . | . . . . . . . . . . . . . . . . . . . . . . . . . . . . . Highest Temperature 595 | 40 . 36 . 238 112 210 125 95 . 204 430 181 413 319 48 553 312 456 236 400 595 360 . 193 89 . . . Average Temperature 107 | 19 . 24 . 122 47 101 53 34 . 54 215 89 120 100 18 162 104 149 126 120 112 71 . 82 57 . . . Received Heat Transfer 4561 | . . . . 54 657 144 135 27 . 300 . 168 138 36 57 477 324 222 84 75 30 361 42 669 426 135 . . Effects 19 | . . . . . . . . . . . 4 . 1 1 . 2 1 3 . 2 4 1 . . . . . . Shutdowns 7 | . . . . . . . . . . . 1 . . . . 1 . 3 . . 1 1 . . . . . . Energy Bleed 1 | . . . . . . . . . . . . . . . . . 1 . . . . . . . . . . . Interference 7 | . . . . . . . . . . . 3 . . 1 . 1 . . . 2 . . . . . . . . Damage (minor) 1 | . . . . . . . . . . . . . 1 . . . . . . . . . . . . . . . Damage (major) 2 | . . . . . . . . . . . . . . . . . . . . . 2 . . . . . . . Damage (core) 1 | . . . . . . . . . . . . . . . . . . . . . 1 . . . . . . . Siege Activations . | . . . . . . . . . . . . . . . . . . . . . . . . . . . . . Robots Corrupted 19 | . . . . . . . . . . . . . . . . . 5 4 . 5 4 . . 1 . . . . Combat Hostiles 13 | . . . . . . . . . . . . . . . . . 4 2 . 3 3 . . 1 . . . . Parts Fried 104 | . . . . . . 2 . . . . . . . . 3 . 20 17 1 37 23 . . 1 . . . . Impact Corruptions 5 | . . . . 1 1 . . . . . . 1 . . . . . . . . . . . . 2 . . . Robots Melted 5 | . . . . . . . . . . . . 3 1 1 . . . . . . . . . . . . . . Combat Hostiles 5 | . . . . . . . . . . . . 3 1 1 . . . . . . . . . . . . . . Parts Melted 28 | . . . . . 5 . . . . 1 . 13 3 1 . 1 . . . . . 4 . . . . . . Heat Transferred 15104 | 300 . 111 . 333 938 359 . . . 474 . 4113 1523 1000 250 1347 333 744 . 999 . 1392 . 555 333 . . . Parts Sabotaged 5 | . . . . . . . . . . . . . . . . . . . . . . 5 . . . . . . Parts Stolen . | . . . . . . . . . . . . . . . . . . . . . . . . . . . . . Parts Stripped . | . . . . . . . . . . . . . . . . . . . . . . . . . . . . . Power Chain Reactions 7 | . . . . . 1 3 . . . . . . . . 1 . . 1 . . . 1 . . . . . . Missiles Intercepted . | . . . . . . . . . . . . . . . . . . . . . . . . . . . . . Alert | -11 -10 -10 -10 -9 -8 -8 -8 -8 -6 -6 -6 -6 -6 -6 -6 -5 -5 -5 -4 -4 -3 -3 -3 -3 -2 -2 -2 -2 ------- Run | Jun Mat Min Exi Min Mat Sto Gar Rec Fac Gar Fac Ext Cet Arc Hub Fac Gar Fac Fac Gar Res Gar Qua Gar Res Gar Res DSF Peak Influence 1379 | 20 28 10 . 70 920 652 848 548 585 827 475 372 735 411 1057 849 1379 1252 609 1056 823 885 589 746 642 372 207 157 Initial 723 | . 13 10 . . 27 367 423 381 585 409 434 134 208 231 143 517 580 723 574 426 594 301 492 441 419 354 207 157 Average 546 | 8 15 7 . 64 519 452 697 379 585 675 428 170 440 370 321 697 1044 1001 588 785 573 688 516 648 513 361 207 157 Maximum Alert Level 4 | . . . . . 3 2 3 2 2 3 2 1 3 2 3 3 4 4 2 3 3 3 2 3 2 1 1 . Low Security (%) 13 | 100 100 100 . 100 23 . . . . . . 52 3 . 25 . . . . . . . . . . . . 100 Level 1 15 | . . . . . 19 22 . 53 . . 6 47 46 57 60 . . . . . 9 4 . . . 100 100 . Level 2 41 | . . . . . 13 77 50 46 100 51 93 . 43 42 9 52 17 . 100 37 77 43 100 66 100 . . . Level 3 25 | . . . . . 43 . 49 . . 48 . . 5 . 4 47 25 70 . 62 13 51 . 33 . . . . Level 4 4 | . . . . . . . . . . . . . . . . . 57 29 . . . . . . . . . . Level 5 . | . . . . . . . . . . . . . . . . . . . . . . . . . . . . . High Security . | . . . . . . . . . . . . . . . . . . . . . . . . . . . . . Max Security . | . . . . . . . . . . . . . . . . . . . . . . . . . . . . . Squads Dispatched 50 | . 1 . . 1 14 3 . . . . . 2 . . 4 2 . 7 2 . 7 . 2 . 5 . . . Investigation 17 | . 1 . . 1 7 2 . . . . . 1 . . . . . 1 . . 3 . . . 1 . . . Extermination 4 | . . . . . . . . . . . . . . . 1 1 . . . . . . 1 . 1 . . . Reinforcement 16 | . . . . . 4 . . . . . . 1 . . 2 . . 3 . . 4 . . . 2 . . . Assault 11 | . . . . . 3 . . . . . . . . . 1 1 . 3 2 . . . . . 1 . . . Garrison 2 | . . . . . . 1 . . . . . . . . . . . . . . . . 1 . . . . . Intercept . | . . . . . . . . . . . . . . . . . . . . . . . . . . . . . Searches Triggered . | . . . . . . . . . . . . . . . . . . . . . . . . . . . . . Construction Impeded 3 | . . . . . . . . . . . . . . . . . . 1 . . . . . . 2 . . . Haulers Reinforced 3 | . . . . . . . . . . . . . . . . . . 2 . . 1 . . . . . . . Active Scanning Responses . | . . . . . . . . . . . . . . . . . . . . . . . . . . . . . Cargo Convoy Interrupts . | . . . . . . . . . . . . . . . . . . . . . . . . . . . . . Stealth | -11 -10 -10 -10 -9 -8 -8 -8 -8 -6 -6 -6 -6 -6 -6 -6 -5 -5 -5 -4 -4 -3 -3 -3 -3 -2 -2 -2 -2 --------- Run | Jun Mat Min Exi Min Mat Sto Gar Rec Fac Gar Fac Ext Cet Arc Hub Fac Gar Fac Fac Gar Res Gar Qua Gar Res Gar Res DSF Distress Signals 25 | . . . . . 3 . . . . . . 1 3 . 1 1 . 1 . . 14 . . . 1 . . . Communications Jammed . | . . . . . . . . . . . . . . . . . . . . . . . . . . . . . Distress Signals . | . . . . . . . . . . . . . . . . . . . . . . . . . . . . . Times Spotted 480 | . 1 1 . 3 74 15 17 3 . 19 3 27 20 12 15 19 32 43 6 25 25 37 8 23 35 16 . 1 Peak Tracking Total 16 | . 1 2 . 2 14 4 4 1 . 5 2 4 5 1 5 5 6 8 6 5 5 5 2 8 15 16 . 1 Tactical Retreats 29 | . . . . . 10 . 1 . . 1 . . . . 1 . 2 4 . 4 2 3 . . . 1 . . Traps | -11 -10 -10 -10 -9 -8 -8 -8 -8 -6 -6 -6 -6 -6 -6 -6 -5 -5 -5 -4 -4 -3 -3 -3 -3 -2 -2 -2 -2 ------- Run | Jun Mat Min Exi Min Mat Sto Gar Rec Fac Gar Fac Ext Cet Arc Hub Fac Gar Fac Fac Gar Res Gar Qua Gar Res Gar Res DSF Traps Triggered 45 | . . . . . 2 2 4 . . 4 2 7 . . 2 1 6 1 . 3 2 3 . 6 . . . . Indirectly . | . . . . . . . . . . . . . . . . . . . . . . . . . . . . . Trap Hack Attempts 6 | . . . . . . . . . . . 6 . . . . . . . . . . . . . . . . . Triggered . | . . . . . . . . . . . . . . . . . . . . . . . . . . . . . Disarmed . | . . . . . . . . . . . . . . . . . . . . . . . . . . . . . Reprogrammed 1 | . . . . . . . . . . . 1 . . . . . . . . . . . . . . . . . Reused . | . . . . . . . . . . . . . . . . . . . . . . . . . . . . . Traps Extracted 1 | . . . . . . . . . . . 1 . . . . . . . . . . . . . . . . . Installed 1 | . . . . . . . . . . . . . . . 1 . . . . . . . . . . . . . Triggered 1 | . . . . . . . . . . . . . . . . . . . . 1 . . . . . . . . Most Traps Carried 1 | . . . . . . . . . . . 1 1 1 1 1 . . . . . . . . . . . . . Exploded 1 | . . . . . 1 . . . . . . . . . . . . . . . . . . . . . . . Machines | -11 -10 -10 -10 -9 -8 -8 -8 -8 -6 -6 -6 -6 -6 -6 -6 -5 -5 -5 -4 -4 -3 -3 -3 -3 -2 -2 -2 -2 ---------- Run | Jun Mat Min Exi Min Mat Sto Gar Rec Fac Gar Fac Ext Cet Arc Hub Fac Gar Fac Fac Gar Res Gar Qua Gar Res Gar Res DSF Machines Disabled 57 | . . . . . 2 3 1 . . 3 . 2 2 4 15 4 4 5 . 2 3 2 1 3 1 . . . Max in Single Turn 13 | . . . . . 1 2 1 . . 1 . 1 1 1 13 2 1 3 . . 1 1 1 1 . . . . Garrison Access 4 | . . . . . . . . . . . . . . . 1 . . 1 . . 1 . . . 1 . . . Garrison Relay 9 | . . . . . . . 1 . . 3 . . . . . . 2 . . . . 2 . 1 . . . . Network Hub 2 | . . . . . . . . . . . . . . . 2 . . . . . . . . . . . . . Energy Cycler 1 | . . . . . . . . . . . . 1 . . . . . . . . . . . . . . . . Machines Repaired . | . . . . . . . . . . . . . . . . . . . . . . . . . . . . . Machines Sabotaged . | . . . . . . . . . . . . . . . . . . . . . . . . . . . . . Overloaded Fab Kills . | . . . . . . . . . . . . . . . . . . . . . . . . . . . . . Hacking | -11 -10 -10 -10 -9 -8 -8 -8 -8 -6 -6 -6 -6 -6 -6 -6 -5 -5 -5 -4 -4 -3 -3 -3 -3 -2 -2 -2 -2 --------- Run | Jun Mat Min Exi Min Mat Sto Gar Rec Fac Gar Fac Ext Cet Arc Hub Fac Gar Fac Fac Gar Res Gar Qua Gar Res Gar Res DSF Machines Accessed 72 | . 1 . 2 1 9 3 2 12 1 4 2 8 . . . 2 2 6 2 2 3 1 2 . 5 1 1 . Terminals 46 | . 1 . . 1 6 2 2 6 . 4 1 8 . . . 1 2 4 1 2 . 1 . . 2 1 1 . Fabricators 1 | . . . . . . . . . . . 1 . . . . . . . . . . . . . . . . . Repair Stations 4 | . . . . . . . . . . . . . . . . . . 1 . . 1 . 1 . 1 . . . Recycling Units 9 | . . . . . 2 . . 6 . . . . . . . . . 1 . . . . . . . . . . Scanalyzers 1 | . . . . . 1 . . . . . . . . . . . . . . . . . . . . . . . Garrison Access 9 | . . . . . . 1 . . 1 . . . . . . 1 . . 1 . 2 . 1 . 2 . . . Total Hacks 188 | . 6 . 2 5 22 6 5 34 1 7 6 16 . . . 7 3 26 3 2 10 3 6 . 16 1 1 . Successful 85 | . 2 . 2 1 11 1 . 22 1 2 5 9 . . . 2 2 6 1 1 5 1 3 . 6 1 1 . Failed 103 | . 4 . . 4 11 5 5 12 . 5 1 7 . . . 5 1 20 2 1 5 2 3 . 10 . . . Catastrophic 28 | . 1 . . . 2 2 1 5 . 1 . 2 . . . . 1 8 1 1 . 1 . . 2 . . . Database Lockouts . | . . . . . . . . . . . . . . . . . . . . . . . . . . . . . Manual 63 | . 5 . 1 5 12 2 . 12 . 2 1 3 1 . . . . 10 . . . . . . 9 . . . Terminals 127 | . 6 . . 5 17 4 5 20 . 7 1 16 . . . 6 3 17 2 2 . 3 . . 11 1 1 . Fabricators 5 | . . . . . . . . . . . 5 . . . . . . . . . . . . . . . . . Repair Stations 19 | . . . . . . . . . . . . . . . . . . 6 . . 6 . 5 . 2 . . . Recycling Units 20 | . . . . . 3 . . 14 . . . . . . . . . 3 . . . . . . . . . . Scanalyzers 2 | . . . . . 2 . . . . . . . . . . . . . . . . . . . . . . . Garrison Access 13 | . . . . . . 2 . . 1 . . . . . . 1 . . 1 . 4 . 1 . 3 . . . Terminal Hacks 37 | . 2 . 2 1 5 . . 7 . 2 1 6 . . . 1 2 3 . 1 . 1 . . 1 1 1 . Record 2 | . 1 . 1 . . . . . . . . . . . . . . . . . . . . . . . . . Part Schematic 8 | . . . . 1 . . . 7 . . . . . . . . . . . . . . . . . . . . Robot Schematic 2 | . 1 . . . 1 . . . . . . . . . . . . . . . . . . . . . . . Open Door 7 | . . . . . . . . . . . 1 5 . . . . 1 . . . . . . . . . . . Open DSF 1 | . . . . . . . . . . . . . . . . . . . . . . . . . . . 1 . Emergency Access Points 4 | . . . . . . . . . . . . . . . . . 1 . . 1 . 1 . . . 1 . . Terminal Index 1 | . . . . . . . . . . . . . . . . . . 1 . . . . . . . . . . Garrison Index 1 | . . . . . . . . . . . . . . . . 1 . . . . . . . . . . . . Unreport Threat 2 | . . . . . 1 . . . . . . . . . . . . 1 . . . . . . . . . . Locate Traps 2 | . . . . . . . . . . . . 1 . . . . . . . . . . . . 1 . . . Zone Layout 4 | . . . . . 3 . . . . . . . . . . . . 1 . . . . . . . . . . Garrison Registry 1 | . . . . . . . . . . 1 . . . . . . . . . . . . . . . . . . Patrol Navigation 1 | . . . . . . . . . . 1 . . . . . . . . . . . . . . . . . . EX-Prototype ID Bank 1 | . . . 1 . . . . . . . . . . . . . . . . . . . . . . . . . Fabricator Hacks 4 | . . . . . . . . . . . 4 . . . . . . . . . . . . . . . . . Load Schematic 2 | . . . . . . . . . . . 2 . . . . . . . . . . . . . . . . . Build 2 | . . . . . . . . . . . 2 . . . . . . . . . . . . . . . . . Repair Station Hacks 4 | . . . . . . . . . . . . . . . . . . 1 . . 1 . 2 . . . . . Scan Component 3 | . . . . . . . . . . . . . . . . . . 1 . . 1 . 1 . . . . . Repair 1 | . . . . . . . . . . . . . . . . . . . . . . . 1 . . . . . Recycling Unit Hacks 9 | . . . . . . . . 7 . . . . . . . . . 2 . . . . . . . . . . Report Inventory 7 | . . . . . . . . 6 . . . . . . . . . 1 . . . . . . . . . . Retrieve Components 2 | . . . . . . . . 1 . . . . . . . . . 1 . . . . . . . . . . Scanalyzer 1 | . . . . . 1 . . . . . . . . . . . . . . . . . . . . . . . Insert Component 1 | . . . . . 1 . . . . . . . . . . . . . . . . . . . . . . . Garrison Access Hacks 12 | . . . . . . 1 . . 1 . . . . . . 1 . . 1 . 4 . 1 . 3 . . . Unlock Access 8 | . . . . . . 1 . . 1 . . . . . . 1 . . 1 . 2 . 1 . 1 . . . Seal Access 2 | . . . . . . . . . . . . . . . . . . . . . 1 . . . 1 . . . Coupler Status 2 | . . . . . . . . . . . . . . . . . . . . . 1 . . . 1 . . . Unauthorized Hacks 18 | . . . . . 5 . . 8 . . . 3 . . . . . . . . . . . . 2 . . . Terminals 10 | . . . . . 3 . . 2 . . . 3 . . . . . . . . . . . . 2 . . . Assimilate 1 | . . . . . . . . . . . . 1 . . . . . . . . . . . . . . . . Botnet 7 | . . . . . 2 . . 2 . . . 2 . . . . . . . . . . . . 1 . . . Operators 1 | . . . . . . . . . . . . . . . . . . . . . . . . . 1 . . . Search 1 | . . . . . 1 . . . . . . . . . . . . . . . . . . . . . . . Fabricators . | . . . . . . . . . . . . . . . . . . . . . . . . . . . . . Repair Stations . | . . . . . . . . . . . . . . . . . . . . . . . . . . . . . Recycling Units 8 | . . . . . 2 . . 6 . . . . . . . . . . . . . . . . . . . . Tunnel 8 | . . . . . 2 . . 6 . . . . . . . . . . . . . . . . . . . . Scanalyzers . | . . . . . . . . . . . . . . . . . . . . . . . . . . . . . Garrison Access . | . . . . . . . . . . . . . . . . . . . . . . . . . . . . . Data Cores Recovered 2 | . . . . . . . . . . . . 1 . . . . . 1 . . . . . . . . . . Used 2 | . . . . . . . . . . . . 1 . . . . . 1 . . . . . . . . . . Hacking Detections 47 | . 1 . . 1 5 3 2 8 1 4 2 4 . . . 1 . 5 1 1 2 . 1 . 4 1 . . Full Trace Events 13 | . 1 . . 1 3 2 . 4 . . . . . . . . . 1 . . . . . . 1 . . . Feedback Events 1 | . . . . . . 1 . . . . . . . . . . . . . . . . . . . . . . Corruption 1 | . . . . . . 1 . . . . . . . . . . . . . . . . . . . . . . Feedback Blocked . | . . . . . . . . . . . . . . . . . . . . . . . . . . . . . Robot Schematics Acquired 3 | . 1 . . . 1 . . . . . . . . . . . . . . . . . 1 . . . . . Robots Built 1 | . . . . . . . . . . . 1 . . . . . . . . . . . . . . . . . Authchips 1 | . . . . . . . . . . . 1 . . . . . . . . . . . . . . . . . Time 27 | . . . . . . . . . . . 27 . . . . . . . . . . . . . . . . . Total Robot Build Rating 1 | . . . . . . . . . . . 1 . . . . . . . . . . . . . . . . . Part Schematics Acquired 10 | . . . . 1 . . . 7 . . . . . . . . . . . . . . 2 . . . . . Parts Built 2 | . . . . . . . . . . . 2 . . . . . . . . . . . . . . . . . Authchips 1 | . . . . . . . . . . . 1 . . . . . . . . . . . . . . . . . Time 20 | . . . . . . . . . . . 20 . . . . . . . . . . . . . . . . . Total Part Build Rating 4 | . . . . . . . . . . . 4 . . . . . . . . . . . . . . . . . Parts Repaired 1 | . . . . . . . . . . . . . . . . . . . . . . . 1 . . . . . Time 26 | . . . . . . . . . . . . . . . . . . . . . . . 26 . . . . . Parts Recycled . | . . . . . . . . . . . . . . . . . . . . . . . . . . . . . Recycled Matter . | . . . . . . . . . . . . . . . . . . . . . . . . . . . . . Retrieved Matter . | . . . . . . . . . . . . . . . . . . . . . . . . . . . . . Retrieved Components 6 | . . . . . . . . 3 . . . . . . . . . 3 . . . . . . . . . . Parts Scanalyzed . | . . . . . . . . . . . . . . . . . . . . . . . . . . . . . Part Schematics Acquired . | . . . . . . . . . . . . . . . . . . . . . . . . . . . . . Parts Damaged . | . . . . . . . . . . . . . . . . . . . . . . . . . . . . . Bothacking | -11 -10 -10 -10 -9 -8 -8 -8 -8 -6 -6 -6 -6 -6 -6 -6 -5 -5 -5 -4 -4 -3 -3 -3 -3 -2 -2 -2 -2 ------------ Run | Jun Mat Min Exi Min Mat Sto Gar Rec Fac Gar Fac Ext Cet Arc Hub Fac Gar Fac Fac Gar Res Gar Qua Gar Res Gar Res DSF Used RIF Installer 6 | . . . . . . . 1 . . 1 . . . . . . 1 . . 1 . 1 . 1 . . . . Threat Obfuscator 2 | . . . . . . . . . . . . . . . . . 1 . . 1 . . . . . . . . Program Shield 1 | . . . . . . . . . . 1 . . . . . . . . . . . . . . . . . . Autooverride 1 | . . . . . . . . . . . . . . . . . . . . . . 1 . . . . . . Autoassimilate 1 | . . . . . . . . . . . . . . . . . . . . . . . . 1 . . . . Robots Hacked 30 | . . . 4 . . 1 . . . 7 . 3 . . . . 2 . . 3 . 4 1 1 2 2 . . Non-combat 4 | . . . 3 . . . . . . . . . . . . . . . . . . 1 . . . . . . Combat 26 | . . . 1 . . 1 . . . 7 . 3 . . . . 2 . . 3 . 3 1 1 2 2 . . Autooverrided 3 | . . . . . . . . . . . . . . . . . . . . . . . . . 1 2 . . Robot Hacks Applied 27 | . . . 4 . . 1 . . . 7 . 3 . . . . 2 . . 3 . 4 1 1 1 . . . parse_system 6 | . . . 4 . . 1 . . . . . 1 . . . . . . . . . . . . . . . . focus_fire 1 | . . . . . . . . . . . . 1 . . . . . . . . . . . . . . . . amplify_resonance 3 | . . . . . . . . . . 1 . . . . . . . . . . . 1 . . 1 . . . disable_weapons 1 | . . . . . . . . . . . . . . . . . . . . 1 . . . . . . . . overwrite_iff 1 | . . . . . . . . . . 1 . . . . . . . . . . . . . . . . . . streamctrl_high 2 | . . . . . . . . . . 2 . . . . . . . . . . . . . . . . . . formatsys_low 1 | . . . . . . . . . . . . . . . . . . . . . . . 1 . . . . . formatsys_high 12 | . . . . . . . . . . 3 . 1 . . . . 2 . . 2 . 3 . 1 . . . . Relay Couplers Released 53 | . . . . . . . 7 . . 13 . . . . 1 . 7 1 . . 4 13 . 7 . . . . Machine Destruction 38 | . . . . . . . 4 . . 13 . . . . 1 . 7 1 . . . 9 . 3 . . . . Programmers 15 | . . . . . . . 3 . . . . . . . . . . . . . 4 4 . 4 . . . . Attached 16 | . . . . . . . . 1 . 4 . . . 1 . . 1 . . 1 1 2 1 1 1 . 2 . Fabnet Peak Effective % . | . . . . . . . . . . . . . . . . . . . . . . . . . . . . . Robots Rewired 14 | . . . . . . . . . . . . 7 . . . . 3 . . 2 . . . 2 . . . . Allies Hacked 1 | . . . . . . . . . . . . . . . . . . . . . . . 1 . . . . . Hacks Repelled . | . . . . . . . . . . . . . . . . . . . . . . . . . . . . . Allies | -11 -10 -10 -10 -9 -8 -8 -8 -8 -6 -6 -6 -6 -6 -6 -6 -5 -5 -5 -4 -4 -3 -3 -3 -3 -2 -2 -2 -2 -------- Run | Jun Mat Min Exi Min Mat Sto Gar Rec Fac Gar Fac Ext Cet Arc Hub Fac Gar Fac Fac Gar Res Gar Qua Gar Res Gar Res DSF Total Allies 56 | . . . . . . 2 1 . . 6 1 17 5 . . . 5 . . 4 3 5 1 3 1 2 . . Largest Group 10 | . . . . . . 2 1 1 1 3 4 10 9 3 1 . 5 . . 3 3 2 1 1 2 1 . . Highest-Rated Group 524 | . . . . . . 116 39 39 39 87 101 418 524 344 96 . 196 . . 232 138 190 49 148 206 58 . . Highest-Rated Ally 159 | . . . . . . 100 39 39 39 39 29 159 159 152 96 . 46 . . 116 46 95 49 148 148 58 . . Total Orders 7 | . . . . . . . . . . . 2 3 . . . . . . . . . . . 2 . . . . ROAM 1 | . . . . . . . . . . . . . . . . . . . . . . . . 1 . . . . FOLLOW 3 | . . . . . . . . . . . 1 1 . . . . . . . . . . . 1 . . . . AID 3 | . . . . . . . . . . . 1 2 . . . . . . . . . . . . . . . . Ally Attacks 523 | . . . . . . 14 10 12 . 37 10 101 102 16 17 . 53 . . 53 14 22 9 13 38 2 . . Total Damage 13910 | . . . . . . 381 95 263 . 532 132 1890 3229 688 490 . 1219 . . 2167 404 759 . 500 1161 . . . Kills 84 | . . . . . . 4 4 1 . 2 1 16 20 3 5 . 8 . . 11 1 3 . 1 4 . . . Allies Corrupted 1 | . . . . . . . . . . . . . . . . . 1 . . . . . . . . . . . Allies Melted 1 | . . . . . . . . . . . . . . . . . . . . . . . . 1 . . . . Intel | -11 -10 -10 -10 -9 -8 -8 -8 -8 -6 -6 -6 -6 -6 -6 -6 -5 -5 -5 -4 -4 -3 -3 -3 -3 -2 -2 -2 -2 ------- Run | Jun Mat Min Exi Min Mat Sto Gar Rec Fac Gar Fac Ext Cet Arc Hub Fac Gar Fac Fac Gar Res Gar Qua Gar Res Gar Res DSF Robot Analysis Total . | . . . . . . . . . . . . . . . . . . . . . . . . . . . . . Derelict Logs Recovered 3 | . . 2 . 1 . . . . . . . . . . . . . . . . . . . . . . . . Drone Launches . | . . . . . . . . . . . . . . . . . . . . . . . . . . . . . Drone Recoveries . | . . . . . . . . . . . . . . . . . . . . . . . . . . . . . Exploration | -11 -10 -10 -10 -9 -8 -8 -8 -8 -6 -6 -6 -6 -6 -6 -6 -5 -5 -5 -4 -4 -3 -3 -3 -3 -2 -2 -2 -2 ------------- Run | Jun Mat Min Exi Min Mat Sto Gar Rec Fac Gar Fac Ext Cet Arc Hub Fac Gar Fac Fac Gar Res Gar Qua Gar Res Gar Res DSF Turns Passed 18662 | 209 100 565 606 320 1653 536 704 1256 211 1135 429 1516 551 291 271 605 1009 715 279 1179 1466 1163 313 838 650 59 22 11 Spaces Moved 12174 | 123 80 448 515 313 1065 396 566 687 145 780 270 675 250 117 152 295 747 710 292 623 996 758 184 525 300 118 35 9 Core 205 | 18 . . . . . . . . . . . . . . . . . . . . . . . . 28 118 35 6 Treads 4132 | . . . . . . . . . . 503 270 649 . . . 259 268 . . 286 931 758 184 24 . . . . Legs 5402 | 105 80 448 515 313 1065 396 566 445 145 180 . 26 250 117 152 36 . . . 19 . . . 273 271 . . . Wheels 245 | . . . . . . . . 242 . . . . . . . . . . . . . . . . . . . 3 Hover 2190 | . . . . . . . . . . 97 . . . . . . 479 710 292 318 65 . . 228 1 . . . Flight . | . . . . . . . . . . . . . . . . . . . . . . . . . . . . . Fastest Speed 50 | 50 120 120 90 90 60 100 100 100 140 98 98 140 124 124 145 145 69 69 69 119 111 111 116 80 50 50 50 50 Average Speed 121 | 109 120 120 113 90 124 100 100 172 140 114 112 189 178 142 145 145 98 69 83 138 131 113 127 86 148 50 50 66 Slowest Speed 520 | 120 120 120 120 90 176 100 100 214 140 191 191 217 217 145 145 145 230 69 119 170 250 116 231 231 520 50 50 100 Overloaded Moves 57 | . . . . . 57 . . . . . . . . . . . . . . . . . . . . . . . Propulsion Burnouts . | . . . . . . . . . . . . . . . . . . . . . . . . . . . . . Robots Hopped . | . . . . . . . . . . . . . . . . . . . . . . . . . . . . . Cave-ins Triggered . | . . . . . . . . . . . . . . . . . . . . . . . . . . . . . Exploration Rate (%) 45 | 8 19 65 79 66 89 66 57 99 4 76 8 83 72 73 23 8 66 28 10 62 42 69 20 53 13 30 1 20 Regions Visited 28 Branch Regions 10 Pre-discovered Areas 10 | . . 1 1 . 2 . . 6 . . . . . . . . . . . . . . . . . . . . Known Exits Taken 9 | . . . . . 1 1 . . 1 . . . . . . 1 . . 1 . 1 . 1 . 1 . 1 . Unknown Exits Taken 12 | 1 1 1 1 1 . . . 1 . . 1 1 1 1 1 . . 1 . . . . . . . . . . Scrap Searched 2 | . . . . 2 . . . . . . . . . . . . . . . . . . . . . . . . Spaces Dug 8 | . . . . . . . . . . . . . . . 3 . . 3 . 1 . . . . 1 . . . Terrain Destroyed 780 | . . . . . 15 39 . . . 34 . 1 3 8 360 24 12 67 . 12 16 74 3 65 47 . . . Melee . | . . . . . . . . . . . . . . . . . . . . . . . . . . . . . Projectile 170 | . . . . . 11 . . . . 2 . . 3 8 10 12 12 12 . 12 16 36 3 24 9 . . . AOE 609 | . . . . . 4 39 . . . 32 . . . . 350 12 . 55 . . . 38 . 41 38 . . . Terrain Rammed . | . . . . . . . . . . . . . . . . . . . . . . . . . . . . . Walls Destroyed . | . . . . . . . . . . . . . . . . . . . . . . . . . . . . . Machines Disabled . | . . . . . . . . . . . . . . . . . . . . . . . . . . . . . Actions | -11 -10 -10 -10 -9 -8 -8 -8 -8 -6 -6 -6 -6 -6 -6 -6 -5 -5 -5 -4 -4 -3 -3 -3 -3 -2 -2 -2 -2 --------- Run | Jun Mat Min Exi Min Mat Sto Gar Rec Fac Gar Fac Ext Cet Arc Hub Fac Gar Fac Fac Gar Res Gar Qua Gar Res Gar Res DSF Total 14923 | 157 85 474 533 334 1293 506 656 752 153 935 387 861 324 211 182 423 954 866 321 836 1100 966 243 779 424 117 39 12 Wait 973 | . . 22 . 11 110 84 46 27 1 42 79 46 26 44 4 55 39 54 15 76 27 49 15 94 7 . . . Move 12150 | 122 79 447 514 312 1064 396 564 686 145 778 269 674 249 116 151 295 746 709 292 621 996 756 184 524 300 117 35 9 Hop . | . . . . . . . . . . . . . . . . . . . . . . . . . . . . . Pick Up 153 | 8 1 3 6 1 18 2 4 6 3 7 7 3 4 4 1 5 5 3 2 7 7 16 16 8 4 . 2 . Fast Attach 84 | 7 . . . . 6 2 1 1 . 5 2 1 4 2 2 3 1 8 2 3 2 12 3 7 7 . . 3 Attach 72 | . . . . . 9 1 . 3 3 8 1 4 1 1 2 2 1 5 1 3 4 8 . 6 7 . 2 . Detach 30 | . . . . . 1 . . 3 1 4 1 1 2 . 1 . . 3 1 1 1 3 . 3 4 . . . Swap 96 | . 2 . 5 . 8 1 3 3 . 6 6 4 6 2 . 6 11 7 1 4 6 6 2 4 3 . . . Drop 184 | . 3 1 4 . 17 2 4 15 . 8 7 3 9 8 . 6 11 9 1 13 10 24 3 14 12 . . . Fire 944 | 20 . 1 . 9 57 16 21 8 . 66 9 51 23 34 20 50 66 64 6 84 41 91 18 112 77 . . . Melee 6 | . . . 4 . . 1 . . . . . . . . . . . . . . . . 1 . . . . . Ram 2 | . . . . . . . . . . . . . . . . . . . . . . . . . 2 . . . Kick 6 | . . . . 1 3 1 . . . . . . . . . . . . . . . . . . 1 . . . Crush 9 | . . . . . . . . . . . . 2 . . . 1 . . . . 6 . . . . . . . Escape Stasis 111 | . . . . . . . 13 . . 8 . 12 . . . . 44 4 . 23 . . . 7 . . . . Rewire 96 | . . . . . . . . . . 3 . 60 . . . . 30 . . 1 . 1 1 . . . . . Trap 7 | . . . . . . . . . . . 6 . . . 1 . . . . . . . . . . . . . Miscellaneous . | . . . . . . . . . . . . . . . . . . . . . . . . . . . . . Route ------- -11/Junkyard -10/Materials -10/Mines (discovered 3 exits: *Mat x2 / *Exi) -10/Exiles (discovered 2 exits: *Min x2) -9/Mines -8/Materials (discovered 5 exits: [*Fac x3] / *Sto x2) -8/Storage -8/Garrison (discovered 2 exits: *Rec x2) -8/Recycling -6/Factory -6/Garrison (discovered 3 exits: *Fac x3) -6/Factory (discovered 2 exits: [*Low] / *Ext) -6/Extension (discovered 2 exits: *Fac / *Cet) -6/Cetus (discovered 2 exits: *Fac / *Arc) -6/Archives -6/Hub_04(d) -5/Factory -5/Garrison (discovered 3 exits: *Fac x3) -5/Factory -4/Factory -4/Garrison (discovered 3 exits: *Res x3) -3/Research -3/Garrison (discovered 3 exits: *Qua x3) -3/Quarantine -3/Garrison (discovered 2 exits: *Res x2) -2/Research -2/Garrison -2/Research (discovered 2 exits: [*Acc] / DSF) -2/DSF History --------- Turn | Location | Event 5 | -11/Junkyard | Discovered new exit (range 14) 210 | -11/Junkyard | Entered Materials 243 | -10/Materials | Discovered new exit (range 14) 308 | -10/Materials | Build established: Mutant 310 | -10/Materials | Entered Mines 340 | -10/Mines | Joined a pair of Derelicts in attacking an 0b10 outpost 409 | -10/Mines | Discovered new exit (range 9) 412 | -10/Mines | Met a Derelict bent on vengeance 527 | -10/Mines | Deemed a non-threat by the Exiles lab entrance 528 | -10/Mines | Discovered new exit (range 5) 616 | -10/Mines | Identified exit to Materials 747 | -10/Mines | Learned location of Storage (-8) 875 | -10/Mines | Entered Exiles 893 | -10/Exiles | Discovered new exit (range 15) 908 | -10/Exiles | Met 8R-AWN 933 | -10/Exiles | Met EX-HEX 968 | -10/Exiles | Met EX-BIN 1009 | -10/Exiles | Met EX-DEC 1069 | -10/Exiles | Aligned with FarCom system 1070 | -10/Exiles | Given EX-Vault access code 1116 | -10/Exiles | Learned location of Zion (-6) 1236 | -10/Exiles | Visited The Gauntlet 1364 | -10/Exiles | Opened EX-Vault 1376 | -10/Exiles | Found Potential Leg 1378 | -10/Exiles | Found Potential Leg 1382 | -10/Exiles | Found XL Autogun Array 1387 | -10/Exiles | Found AWS/Autocannon 1412 | -10/Exiles | Warned to stay clear of 0b10 Research branches 1469 | -10/Exiles | Discovered new exit (range 14) 1481 | -10/Exiles | Stole three prototypes: Potential Leg, XL Autogun Array, AWS/Autocannon 1481 | -10/Exiles | Entered Mines 1521 | -9/Mines | Discovered new exit (range 11) 1702 | -9/Mines | Learned Materials stockpile data 1801 | -9/Mines | Entered Materials 1801 | -8/Materials | Evolved 4 slots: Propulsion x1, Utility x2, Weapon x1 1802 | -8/Materials | Identified exit to Storage 2079 | -8/Materials | Lost 3 parts (1p1n1w) 2215 | -8/Materials | Discovered exit to Storage (range 10) 2515 | -8/Materials | Build established: Skirmisher 2822 | -8/Materials | Discovered new exit (range 16) 3127 | -8/Materials | Discovered new exit (range 15) 3401 | -8/Materials | First assault squad dispatched 3408 | -8/Materials | Discovered new exit (range 10) 3416 | -8/Materials | Core integrity fell below 50% 3454 | -8/Materials | Entered Storage 3910 | -8/Storage | Met 01-MTF 3965 | -8/Storage | Garrison activated, responded to threat 3986 | -8/Storage | Identified exit to Garrison 3990 | -8/Storage | Entered Garrison 3990 | -8/Garrison | Accompanied by 2 allies (01-MTF) 3995 | -8/Garrison | 01-MTF left 4063 | -8/Garrison | Triggered checkpoint 4094 | -8/Garrison | Triggered checkpoint 4155 | -8/Garrison | Installed Relay Interface Framework 4168 | -8/Garrison | Triggered checkpoint 4189 | -8/Garrison | Discovered new exit (range 8) 4304 | -8/Garrison | Rescued a captive Derelict 4496 | -8/Garrison | Discovered new exit (range 8) 4634 | -8/Garrison | Garrison Relay disabled 4694 | -8/Garrison | Entered Recycling 4694 | -8/Recycling | Accompanied by 1 ally 4706 | -8/Recycling | Found Scrap Engine 4936 | -8/Recycling | Core integrity fell below 20% 5291 | -8/Recycling | Build established: Construct 5831 | -8/Recycling | Discovered new exit (range 9) 5950 | -8/Recycling | Entered Factory 5950 | -6/Factory | Accompanied by 1 ally 5950 | -6/Factory | Evolved 4 slots: Propulsion x1, Utility x3 5952 | -6/Factory | FarCom data flow suspended 6161 | -6/Factory | Identified exit to Garrison 6161 | -6/Factory | Entered Garrison 6161 | -6/Garrison | Accompanied by 1 ally 6192 | -6/Garrison | Triggered checkpoint 6309 | -6/Garrison | Expanded RIF knowledge: Program Shield 6326 | -6/Garrison | Spotted B-75 Beast 6428 | -6/Garrison | Allies destroyed B-75 Beast 6459 | -6/Garrison | Lost 3 parts (1p2w) 6587 | -6/Garrison | Garrison Relay disabled 6644 | -6/Garrison | Triggered checkpoint 6676 | -6/Garrison | Triggered checkpoint 6709 | -6/Garrison | Discovered new exit (range 14) 6747 | -6/Garrison | Garrison Relay disabled 6790 | -6/Garrison | Garrison Relay disabled 6863 | -6/Garrison | Discovered new exit (range 10) 6929 | -6/Garrison | Build established: Bothacker-Construct 7020 | -6/Garrison | Triggered checkpoint 7056 | -6/Garrison | Discovered new exit (range 31) 7056 | -6/Garrison | Discovered new exit (range 60) 7056 | -6/Garrison | Discovered new exit (range 26) 7227 | -6/Garrison | Spotted B-75 Beast 7296 | -6/Garrison | Entered Factory 7296 | -6/Factory | Accompanied by 3 allies 7364 | -6/Factory | Discovered new exit (range 5) 7523 | -6/Factory | Fabricated Trap Extractor (x2) 7554 | -6/Factory | Fabricated M-13 Machinist (x1) 7694 | -6/Factory | Discovered new exit (range 10) 7725 | -6/Factory | Entered Extension 7725 | -6/Extension | Accompanied by 2 allies 7840 | -6/Extension | Rescued a captive Derelict 7842 | -6/Extension | Rescued a captive Derelict 8187 | -6/Extension | Rescued a captive Derelict 8222 | -6/Extension | Rescued a captive Derelict 8658 | -6/Extension | Spotted B-75 Beast 8677 | -6/Extension | Destroyed B-75 Beast 8679 | -6/Extension | Spotted B-75 Beast 8688 | -6/Extension | Destroyed B-75 Beast 9009 | -6/Extension | Rescued A7 9051 | -6/Extension | Rescued a captive Derelict 9053 | -6/Extension | Rescued a captive Derelict 9141 | -6/Extension | Energy Cycler disabled 9141 | -6/Extension | Rescued a captive Derelict 9143 | -6/Extension | Rescued a captive Derelict 9212 | -6/Extension | Discovered new exit (range 10) 9214 | -6/Extension | Discovered new exit (range 6) 9220 | -6/Extension | Build established: Commander-Construct 9241 | -6/Extension | Entered Cetus 9241 | -6/Cetus | Accompanied by 9 allies (A7) 9246 | -6/Cetus | Acquired a Cetus Manufacturing Module code from A7 9268 | -6/Cetus | Spotted Cetus Guard 9268 | -6/Cetus | Spotted Cetus Guard 9272 | -6/Cetus | Spotted Cetus Guard 9276 | -6/Cetus | Spotted Cetus Guard 9278 | -6/Cetus | Allies destroyed Cetus Guard 9289 | -6/Cetus | Allies destroyed Cetus Guard 9290 | -6/Cetus | Allies destroyed Cetus Guard 9293 | -6/Cetus | Destroyed Cetus Guard 9443 | -6/Cetus | Escorted A7 to Cetus Mainframe 9461 | -6/Cetus | Started Cetus Manufacturing Module 9486 | -6/Cetus | Manufactured an Enhanced Grunt 9511 | -6/Cetus | Manufactured an Enhanced Grunt 9536 | -6/Cetus | Manufactured an Enhanced Grunt 9541 | -6/Cetus | Discovered new exit (range 16) 9561 | -6/Cetus | Manufactured an Enhanced Grunt 9574 | -6/Cetus | Spotted Cetus Guard 9574 | -6/Cetus | Spotted Cetus Guard 9577 | -6/Cetus | Spotted Cetus Guard 9582 | -6/Cetus | Spotted Cetus Guard 9583 | -6/Cetus | Allies destroyed Cetus Guard 9586 | -6/Cetus | Manufactured an Enhanced Grunt 9592 | -6/Cetus | Allies destroyed Cetus Guard 9601 | -6/Cetus | Allies destroyed Cetus Guard 9610 | -6/Cetus | Allies destroyed Cetus Guard 9618 | -6/Cetus | Found Prototype Device 9618 | -6/Cetus | Identified Exp. Thermal Shield 9630 | -6/Cetus | Discovered new exit (range 15) 9641 | -6/Cetus | Met Revision 17 9792 | -6/Cetus | Entered Archives 9792 | -6/Archives | Accompanied by 3 allies (A7) 9797 | -6/Archives | Received a hacking code to weaken MAIN.C 9884 | -6/Archives | Build established: Construct 9897 | -6/Archives | Unable to access archive contents 10016 | -6/Archives | Discovered new exit (range 15) 10083 | -6/Archives | Entered Hub_04(d) 10083 | -6/Hub_04(d) | Accompanied by 1 ally 10335 | -6/Hub_04(d) | Discovered new exit (range 10) 10341 | -6/Hub_04(d) | Network Hub disabled 10343 | -6/Hub_04(d) | Network Hub disabled 10354 | -6/Hub_04(d) | Entered Factory 10354 | -5/Factory | Evolved 2 slots: Power x1, Weapon x1 10739 | -5/Factory | Destroyed 8 combat bots 10954 | -5/Factory | First assault squad dispatched 10959 | -5/Factory | Identified exit to Garrison 10959 | -5/Factory | Entered Garrison 11133 | -5/Garrison | Garrison Relay disabled 11319 | -5/Garrison | Triggered checkpoint 11320 | -5/Garrison | Triggered checkpoint 11584 | -5/Garrison | Discovered new exit (range 14) 11614 | -5/Garrison | Build established: Scavenger-Construct 11649 | -5/Garrison | Expanded RIF knowledge: Threat Obfuscation 11664 | -5/Garrison | Triggered checkpoint 11711 | -5/Garrison | Garrison Relay disabled 11736 | -5/Garrison | Discovered new exit (range 12) 11828 | -5/Garrison | Discovered new exit (range 10) 11968 | -5/Garrison | Entered Factory 12024 | -5/Factory | Build established: Bothacker-Construct 12268 | -5/Factory | First assault squad dispatched 12325 | -5/Factory | Found Prototype Launcher 12325 | -5/Factory | Identified Mni. Smartbomb Launcher 12343 | -5/Factory | Found Mni. Smartbomb Launcher 12409 | -5/Factory | Spotted B-75 Beast 12472 | -5/Factory | System corruption reached 10% 12473 | -5/Factory | Lost 4 parts (2p2u) 12522 | -5/Factory | Discovered new exit (range 8) 12683 | -5/Factory | Entered another Factory area 12683 | -4/Factory | Evolved 2 slots: Utility x1, Weapon x1 12774 | -4/Factory | Spotted B-86 Titan 12933 | -4/Factory | First assault squad dispatched 12962 | -4/Factory | Identified exit to Garrison 12962 | -4/Factory | Entered Garrison 13008 | -4/Garrison | Spotted B-75 Beast 13041 | -4/Garrison | Spotted B-86 Titan 13054 | -4/Garrison | Spotted B-86 Titan 13126 | -4/Garrison | Rewired B-86 Titan 13130 | -4/Garrison | Rewired B-86 Titan 13167 | -4/Garrison | Destroyed B-75 Beast 13187 | -4/Garrison | Allies destroyed B-86 Titan 13286 | -4/Garrison | Found Quantum Capacitor 13338 | -4/Garrison | Destroyed B-86 Titan 13346 | -4/Garrison | Triggered checkpoint 13386 | -4/Garrison | Triggered checkpoint 13463 | -4/Garrison | Discovered new exit (range 15) 13528 | -4/Garrison | Triggered checkpoint 13620 | -4/Garrison | Discovered new exit (range 15) 13769 | -4/Garrison | Build established: Scavenger-Construct 14107 | -4/Garrison | Expanded RIF knowledge: Threat Obfuscation 14118 | -4/Garrison | Discovered new exit (range 13) 14141 | -4/Garrison | Entered Research 14141 | -3/Research | Evolved 2 slots: Propulsion x1, Utility x1 14341 | -3/Research | Revision forces began assault on 0b10 14470 | -3/Research | Met up with Revision 17++ 14707 | -3/Research | Identified exit to Garrison 14841 | -3/Research | Research terminal network offline 15473 | -3/Research | Spotted Striker 15488 | -3/Research | Build established: Bothacker-Construct 15606 | -3/Research | Identified exit to Garrison 15607 | -3/Research | Entered Garrison 15626 | -3/Garrison | Triggered checkpoint 15646 | -3/Garrison | Triggered checkpoint 15660 | -3/Garrison | Garrison Relay disabled 15764 | -3/Garrison | Spotted B-86 Titan 15775 | -3/Garrison | Triggered checkpoint 15876 | -3/Garrison | Destroyed B-86 Titan 15910 | -3/Garrison | Triggered checkpoint 16098 | -3/Garrison | Discovered new exit (range 15) 16119 | -3/Garrison | Garrison Relay disabled 16163 | -3/Garrison | Spotted B-86 Titan 16181 | -3/Garrison | Destroyed B-86 Titan 16210 | -3/Garrison | Found Relay Coupler [Proto] 16214 | -3/Garrison | Found Relay Coupler [Proto] 16216 | -3/Garrison | Found Relay Coupler [Proto] 16219 | -3/Garrison | Found Relay Coupler [Proto] 16323 | -3/Garrison | Expanded RIF knowledge: Autooverride 16344 | -3/Garrison | Triggered checkpoint 16391 | -3/Garrison | Found embedded Infiltrators 16471 | -3/Garrison | Discovered new exit (range 13) 16519 | -3/Garrison | Build established: Botlord-Construct 16602 | -3/Garrison | Triggered checkpoint 16734 | -3/Garrison | Discovered new exit (range 10) 16770 | -3/Garrison | Entered Quarantine 16827 | -3/Quarantine | Repaired Hcp. Storage Unit 17031 | -3/Quarantine | Garrison activated, responded to threat 17083 | -3/Quarantine | Identified exit to Garrison 17083 | -3/Quarantine | Entered Garrison 17153 | -3/Garrison | Spotted B-86 Titan 17170 | -3/Garrison | System corruption reached 10% 17195 | -3/Garrison | Destroyed B-86 Titan 17286 | -3/Garrison | Core integrity fell below 50% 17288 | -3/Garrison | Destroyed 8 combat bots 17295 | -3/Garrison | Found Hvy. Reflective Plating 17324 | -3/Garrison | Triggered checkpoint 17361 | -3/Garrison | Garrison Relay disabled 17478 | -3/Garrison | Discovered new exit (range 12) 17484 | -3/Garrison | Expanded RIF knowledge: Autoassimilate 17562 | -3/Garrison | Triggered checkpoint 17588 | -3/Garrison | Discovered new exit (range 11) 17660 | -3/Garrison | Spotted B-86 Titan 17660 | -3/Garrison | Spotted B-86 Titan 17668 | -3/Garrison | Rewired B-75 Beast 17670 | -3/Garrison | Rewired B-90 Cyclops 17671 | -3/Garrison | Destroyed B-86 Titan 17679 | -3/Garrison | Allies destroyed B-86 Titan 17778 | -3/Garrison | Found Quantum Capacitor 17921 | -3/Garrison | Entered Research 17921 | -2/Research | Accompanied by 1 ally 17921 | -2/Research | Evolved 2 slots: Utility x2 17984 | -2/Research | Spotted B-90 Cyclops 18034 | -2/Research | Allies destroyed B-90 Cyclops 18080 | -2/Research | Found Quantum Capacitor 18147 | -2/Research | Spotted B-90 Cyclops 18184 | -2/Research | Destroyed B-90 Cyclops 18210 | -2/Research | Build established: Botlord-Mutant 18211 | -2/Research | Found Prototype Processor 18211 | -2/Research | Identified Spectral Analyzer 18402 | -2/Research | Lost 3 parts (1n1u1w) 18421 | -2/Research | First assault squad dispatched 18571 | -2/Research | Identified exit to Garrison 18571 | -2/Research | Entered Garrison 18593 | -2/Garrison | Spotted B-90 Cyclops 18597 | -2/Garrison | Core integrity fell below 50% 18610 | -2/Garrison | Core integrity fell below 20% 18624 | -2/Garrison | Discovered new exit (range 13) 18630 | -2/Garrison | Entered Research 18650 | -2/Research | Discovered new exit (range 11) 18652 | -2/Research | Identified exit to DSF 18652 | -2/Research | Entered DSF 18656 | -2/DSF | Lost 14 parts (3n9u2w) 18663 | -2/DSF | Destroyed by X-82 Rainmaker with Heavy Flak Cannon Last Messages --------------- 18627_ Slug penetrates Wall. 18630_ Attempting to access garrison exit controls... RIF authorized. LOCATION=UNKNOWN GOAL=ESCAPE 18639_ Acquired Enh. Nova Cannon. 18645_ Acquired Unknown Reactor. 18650_ EXIT=FOUND 18652_ Connecting with DSF Access... 18652_ Current location identified: Research >>Open(DSF) DSF access unlocked. 18652_ EXIT=UNLOCKED: DSF LOCATION=DSF AMBIENT_HEAT=-10 GOAL=ESCAPE 18655_ Acquired Arm. Huge Wheel. 18657_ X-82 Rainmaker springs to life. 18659_ Knocked back. 18661_ Acquired Centrium Wheel. Map ----- +----------------------------------------------------+ | ??????????????????????????????????????????? | | ??????????????????????????????????????????? | | ??????????????????????????????????????????? | | ??????????????????????????????????????????? | | ??????????????????????????????????????????? | | ??????????????????????????????????????????? | | ??????????????????????????????????????????? | | ??????????????????????????????????????????? | | ??????????????????????????????????????????? | | ??????????????????????????????????????????? | | ??????????????????????????????????????????? | | ??????????????????????????????????????????? | | ????????! ?????????????H?????????????????? | | ????????! ???????????????????????????????? | | ????????! ???????????????????????????????? | | ????????! #??????????????????????????????? | | ???????## #??????????????????????????????? | | ????????= =??????????????????????????????? | | ????????= =??????????????????????????????? | | ????????= =??????????????????????????????? | | ???????## ##?????????????????????????????? | | ???????# =??????????????????????????????? | | ???????# =??????????????????????????????? | | ????????# #?########?????????????????????? | | ??????### ###==#===#?????#???????????????? | | ????###"" ##==#=@=### ###?????????????? | | ????""""" ?????????? | | ??????#"" x ^ ?????????? | | ??????#"""""## # # ***==#===#?????????? | | ??????#"""""######### ***==#?????????????? | | ??????####"##?????????#######?????????????? | | ?????????#"#??????????????????????????????? | | ?????????""#??????????????????????????????? | | ?????????##???????????????????????????????? | | ??????????????????????????????????????????? | | ??????????????????????????????????????????? | | ??????????????????????????????????????????? | | ??????????????????????????????????????????? | | | | | | | | | | | | | | | | | | | | | | | | | +----------------------------------------------------+ Best States ------------- Heat Dissipation 142 Coolant Potential 80 Energy Generation 64 Energy Capacity 558 Matter Stores 300 Matter Capacity 300 Sight Range 22 Robot Scan Range 16 Terrain Scan Density 10 Additional Mass Support 12 Armor Coverage 825 Resistance: TH 25 Evasion (%) 63 Targeting Accuracy 8 Recoil Reduction 4 Offensive Hacking 12 Relay Coupler Types 3 Relay Coupler Value 62 Authchip Count 3 Item Schematics ----------------- Trap Extractor | -9/Mines | Hacked Imp. Terrain Scan Processor | -8/Recycling | Hacked Hvy. Rocket Launcher | -8/Recycling | Hacked Coil Gun | -8/Recycling | Hacked Adv. Terrain Scanner | -8/Recycling | Hacked Hvy. Plasma Cannon | -8/Recycling | Hacked Gravmag Array | -8/Recycling | Hacked Imp. Gravmag System | -8/Recycling | Hacked Molecular Scythe | -3/Quarantine | Archive Cld. Antimatter Reactor | -3/Quarantine | Archive Robot Schematics ------------------ M-13 Machinist | -10/Materials | Hacked O-24 Administrator | -8/Materials | Hacked A-27 Freighter | -3/Quarantine | Archive Fabricated ------------ Trap Extractor | x2 | -6/Factory | Authchip M-13 Machinist | x1 | -6/Factory | Authchip Alien Tech Used ----------------- None Achievements -------------- None Challenges ------------ None Game ------ Seed InsulationPrecisionChip Manual? 0 Play Time 04:01:50 Cumulative 348.9 hours Start 2023.04.05 @ 23:52:55 End 2023.04.06 @ 11:43:32 Sessions 11 Manual Loads 0 Difficulty Rogue Special Mode None Game No. 224 Rogue 201 Adventurer 6 Explorer 17 Win Type - Total 25 Types 17/0/4/1/0/1/1/1/0 Lore% 95 Gallery% 95 Achievement% 78 Wizard Run 0 Options --------- ASCII 0 Keyboard 0 Movement Numpad Keybinds 0 Fullscreen 1 Font 12/Fuzzy Map View 83x54 Tactical HUD 1 Map Filters NONE Filters NONE Steam 1 RUN: 99723713-b20c-403d-aa10-89624667a314